bitfinex-derivatives/quotes_BTCF0:USTF0_20240830
["timestamp","ask_amount","ask_price","bid_price","bid_amount"]
[1725027858734,0.5604121,59174.0,59167.0,0.445293]
[1725027858735,0.0296121,59174.0,59167.0,0.445293]
[1725027858932,0.11025359,59174.0,59168.0,0.37]
[1725027859135,0.11025359,59174.0,59173.0,0.3608]
[1725027860046,0.11025359,59174.0,59173.0,0.445285]
[1725027860837,0.00025359,59174.0,59173.0,1.552285]
[1725027861038,0.084461,59190.0,59184.0,0.084469]
[1725027861330,0.084461,59190.0,59173.0,1.552285]
[1725027861331,0.13,59190.0,59186.0,0.7308]
[1725027861634,0.13,59190.0,59187.0,0.18496]
[1725027861830,0.084463,59188.0,59187.0,0.18496]
[1725027862035,0.204463,59188.0,59187.0,0.18496]
[1725027862440,0.12,59188.0,59187.0,0.18496]
[1725027862744,0.12,59188.0,59187.0,0.269425]
[1725027863439,0.12,59188.0,59187.0,0.18496]
[1725027863745,0.204463,59188.0,59187.0,0.18496]
[1725027863948,0.12,59188.0,59187.0,0.18496]
[1725027864328,0.204463,59188.0,59187.0,0.18496]
[1725027864849,0.084468,59185.0,59184.0,0.3608]
[1725027865039,0.084471,59183.0,59182.0,0.00025359]
[1725027865233,0.288942,59183.0,59182.0,0.00025359]
[1725027865433,0.12,59183.0,59182.0,0.08472559]
[1725027866444,0.000167,59193.0,59182.0,0.36105359]
[1725027866635,0.000167,59193.0,59189.0,0.084462]
[1725027866636,0.13681161,59193.0,59189.0,0.084462]
[1725027866943,0.194623,59193.0,59189.0,0.09277702]
[1725027867330,0.110167,59193.0,59191.0,0.084458]
[1725027867837,0.110167,59193.0,59192.0,0.084458]
[1725027868437,0.110167,59193.0,59192.0,0.805258]
[1725027868741,0.110167,59193.0,59192.0,0.81355443]
[1725027869136,0.110167,59193.0,59192.0,0.82355443]
[1725027869530,0.000167,59193.0,59192.0,0.84984831]
[1725027869947,0.000167,59193.0,59192.0,1.94668831]
[1725027870335,0.000167,59193.0,59192.0,2.03114631]
[1725027870543,0.000167,59193.0,59192.0,1.94668831]
[1725027870942,0.000167,59193.0,59192.0,2.03114631]
[1725027871338,0.000167,59193.0,59192.0,1.67114631]
[1725027872138,0.02638688,59204.0,59203.0,0.084442]
[1725027872459,0.084422,59217.0,59203.0,0.084442]
[1725027872460,0.084422,59217.0,59203.0,1.26376]
[1725027872641,0.1,59217.0,59211.0,0.3608]
[1725027872951,0.12649686,59217.0,59211.0,0.3608]
[1725027873152,0.084429,59213.0,59211.0,0.3608]
[1725027873351,0.084429,59212.0,59211.0,0.3608]
[1725027873654,0.12,59212.0,59208.0,0.00025336]
[1725027873838,0.12,59212.0,59190.0,0.0045]
[1725027873839,0.168886,59202.0,59201.0,0.02708131]
[1725027874037,0.565243,59202.0,59201.0,0.02708131]
[1725027874343,0.204443,59202.0,59201.0,0.02708131]
[1725027874545,0.084449,59198.0,59197.0,0.08445]
[1725027874849,0.19445,59198.0,59193.0,0.3608]
[1725027875036,0.19445,59198.0,59197.0,0.084451]
[1725027875347,0.084456,59193.0,59192.0,0.00025336]
[1725027875550,0.204456,59193.0,59192.0,0.00025336]
[1725027875854,0.12,59193.0,59192.0,0.08471136]
[1725027876240,0.12,59193.0,59192.0,0.52916936]
[1725027876447,0.12,59193.0,59192.0,1.03600936]
[1725027876853,0.12,59193.0,59192.0,0.96155136]
[1725027877073,0.12,59193.0,59192.0,0.45471136]
[1725027877743,0.12,59193.0,59192.0,0.48139861]
[1725027878541,0.12,59193.0,59192.0,0.37025336]
[1725027878759,0.288912,59193.0,59192.0,0.00025336]
[1725027879252,0.565256,59193.0,59192.0,0.00025336]
[1725027879461,0.23040977,59193.0,59192.0,0.00025336]
[1725027879646,0.14595377,59193.0,59192.0,0.00025336]
[1725027879840,0.23040977,59193.0,59192.0,0.00025336]
[1725027880057,0.12,59193.0,59192.0,0.08471136]
[1725027881854,0.204456,59193.0,59192.0,0.00025336]
[1725027882246,0.12,59193.0,59192.0,0.08471136]
[1725027884259,0.00025261,59203.0,59202.0,0.084443]
[1725027884562,0.13025261,59203.0,59202.0,0.084443]
[1725027885757,0.13025261,59203.0,59202.0,0.168886]
[1725027885956,0.00025261,59203.0,59202.0,1.275606]
[1725027886867,0.00025261,59203.0,59202.0,0.084443]
[1725027887756,0.12025261,59203.0,59202.0,0.02717995]
[1725027887957,0.20469561,59203.0,59200.0,0.39336]
[1725027888163,0.084443,59202.0,59201.0,0.0504259]
[1725027888354,0.084443,59202.0,59200.0,0.39336]
[1725027888355,0.11,59202.0,59200.0,0.477805]
[1725027888753,0.11,59202.0,59201.0,0.445245]
[1725027889561,0.11,59202.0,59201.0,0.51247364]
[1725027889858,0.11,59202.0,59201.0,0.445245]
[1725027890250,0.11,59202.0,59200.0,0.42040711]
[1725027890458,0.11,59202.0,59200.0,0.9329274]
[1725027890859,0.11,59202.0,59201.0,0.06727529]
[1725027891063,0.11,59202.0,59198.0,0.06727529]
[1725027891263,0.11,59202.0,59201.0,0.05047565]
[1725027891449,0.11,59202.0,59201.0,0.05047641]
[1725027891650,0.084448,59199.0,59196.0,0.05047641]
[1725027891955,0.084448,59199.0,59194.0,0.3608]
[1725027891956,0.084449,59198.0,59194.0,0.3608]
[1725027892158,0.084453,59195.0,59194.0,0.3608]
[1725027892363,0.204453,59195.0,59194.0,0.3608]
[1725027892966,0.12,59195.0,59194.0,0.445255]
[1725027893182,0.12,59195.0,59194.0,0.084455]
[1725027893466,0.12,59195.0,59194.0,0.445255]
[1725027893657,0.12,59195.0,59194.0,0.49573141]
[1725027893854,0.12,59195.0,59194.0,0.445255]
[1725027894050,0.204453,59195.0,59194.0,0.084455]
[1725027894255,0.12,59195.0,59194.0,0.05049346]
[1725027894455,0.084456,59193.0,59192.0,0.00025336]
[1725027894663,0.13,59193.0,59192.0,0.08471136]
[1725027895055,0.13,59193.0,59192.0,0.13521006]
[1725027895255,0.13,59193.0,59192.0,0.08471136]
[1725027896564,0.13,59193.0,59192.0,0.00025336]
[1725027896565,0.214456,59193.0,59192.0,0.00025336]
[1725027897162,1.321296,59193.0,59192.0,0.00025336]
[1725027897362,1.405752,59193.0,59192.0,0.00025336]
[1725027897557,1.532052,59193.0,59192.0,0.00025336]
[1725027898058,1.55859029,59193.0,59192.0,0.00025336]
[1725027898863,0.95859029,59193.0,59192.0,0.00025336]
[1725027899065,1.55859029,59193.0,59192.0,0.00025336]
[1725027899969,1.64304629,59193.0,59192.0,0.00025336]
[1725027900267,1.64304629,59193.0,59177.0,0.20850655]
[1725027900268,0.084478,59178.0,59177.0,0.18204]
[1725027900581,0.214478,59178.0,59172.0,0.1350197]
[1725027900759,0.084488,59171.0,59170.0,0.0505337]
[1725027900962,0.084489,59170.0,59169.0,0.08449]
[1725027901172,0.084489,59170.0,59169.0,0.09292924]
[1725027901173,0.11,59170.0,59169.0,0.09292924]
[1725027902270,0.194489,59170.0,59169.0,0.09292924]
[1725027902669,0.194489,59170.0,59164.0,0.00025336]
[1725027902670,0.084496,59165.0,59164.0,0.00025336]
[1725027902859,0.204496,59165.0,59164.0,0.00025336]
[1725027903771,0.12,59165.0,59164.0,0.45383693]
[1725027903958,0.12,59165.0,59164.0,0.00025336]
[1725027904162,0.12,59165.0,59164.0,0.45379467]
[1725027904460,0.12,59165.0,59164.0,0.44555136]
[1725027904859,0.12,59165.0,59164.0,0.4539223]
[1725027906172,0.00025336,59175.0,59174.0,0.084483]
[1725027906376,0.11025336,59175.0,59174.0,0.867363]
[1725027906676,0.19473536,59175.0,59166.0,0.24]
[1725027906867,0.084496,59165.0,59164.0,0.0086243]
[1725027907064,0.194496,59165.0,59164.0,0.00025336]
[1725027907462,0.11,59165.0,59164.0,0.00025336]
[1725027907664,0.11,59165.0,59164.0,0.09308667]
[1725027907861,0.11,59165.0,59164.0,0.16924936]
[1725027908072,0.11,59165.0,59164.0,0.53004936]
[1725027908379,0.11,59165.0,59164.0,0.53862568]
[1725027908772,0.11,59165.0,59164.0,1.64570568]
[1725027909373,0.11,59165.0,59164.0,1.73020368]
[1725027909775,0.4462,59193.0,59174.0,0.084483]
[1725027910071,0.09025336,59175.0,59174.0,1.046083]
[1725027910264,0.09025336,59175.0,59174.0,1.130566]
[1725027910668,0.09025336,59175.0,59174.0,1.637526]
[1725027910892,0.00060136,59175.0,59174.0,2.322009]
[1725027911182,0.24,59207.0,59175.0,0.50696]
[1725027911183,0.206941,59204.0,59175.0,0.50696]
[1725027911480,0.12,59201.0,59199.0,0.24]
[1725027911665,0.12,59201.0,59200.0,0.3608]
[1725027911864,0.14681506,59201.0,59200.0,0.3608]
[1725027912572,0.12,59201.0,59200.0,0.3608]
[1725027912869,0.711205,59201.0,59200.0,0.3608]
[1725027913066,0.711205,59201.0,59195.0,0.00025336]
[1725027913067,1.22676,59201.0,59195.0,0.00025336]
[1725027913268,0.084452,59196.0,59195.0,0.00025336]
[1725027913464,0.184452,59196.0,59195.0,0.00025336]
[1725027913671,1.652052,59196.0,59195.0,0.00025336]
[1725027914368,1.736504,59196.0,59195.0,0.00025336]
[1725027914677,0.545252,59196.0,59195.0,0.00025336]
[1725027915267,0.4608,59196.0,59195.0,0.08470636]
[1725027915565,0.12642507,59196.0,59195.0,0.08470636]
[1725027916266,0.12642507,59196.0,59195.0,0.44550636]
[1725027916873,0.1,59196.0,59195.0,0.44550636]
[1725027917478,0.184452,59196.0,59195.0,0.00025336]
[1725027917670,1.375704,59196.0,59195.0,0.00025336]
[1725027917868,1.490004,59196.0,59195.0,0.00025336]
[1725027918076,0.184452,59196.0,59195.0,0.00025336]
[1725027918276,0.691252,59196.0,59195.0,0.08470636]
[1725027918574,0.1,59196.0,59195.0,0.68550636]
[1725027919277,0.19956579,59196.0,59195.0,0.68550636]
[1725027919466,0.1,59196.0,59195.0,0.68550636]
[1725027919668,0.19956579,59196.0,59195.0,0.68550636]
[1725027919875,0.1,59196.0,59195.0,0.68550636]
[1725027920064,0.1,59196.0,59195.0,0.76995936]
[1725027920263,0.05,59196.0,59195.0,1.70785336]
[1725027920479,0.09956579,59202.0,59195.0,1.91280636]
[1725027920670,0.085,59202.0,59201.0,0.445245]
[1725027920869,0.085,59202.0,59201.0,0.3608]
[1725027921271,0.11,59202.0,59201.0,0.3608]
[1725027921472,0.11,59202.0,59201.0,0.685245]
[1725027922577,0.11,59202.0,59201.0,0.24]
[1725027922889,0.11,59202.0,59201.0,0.6008]
[1725027923177,0.11,59202.0,59201.0,0.685245]
[1725027923566,0.11,59202.0,59195.0,0.4900341]
[1725027923567,0.4708,59202.0,59197.0,0.24]
[1725027923768,0.6008,59199.0,59180.0,0.24]
[1725027923971,0.6008,59199.0,59175.0,0.58044]
[1725027923972,0.3608,59194.0,59185.0,0.24]
[1725027924283,0.4908,59194.0,59185.0,0.24]
[1725027924482,0.4908,59194.0,59182.0,0.36917961]
[1725027924483,0.13,59194.0,59182.0,0.36917961]
[1725027924783,0.13,59194.0,59181.0,0.24]
[1725027924784,0.084472,59182.0,59181.0,0.24]
[1725027924971,0.194472,59182.0,59181.0,0.24]
[1725027925375,0.11,59182.0,59177.0,0.24831708]
[1725027925567,0.3608,59179.0,59177.0,0.24]
[1725027925768,0.4708,59179.0,59177.0,0.24]
[1725027925967,0.4708,59179.0,59176.0,0.00025336]
[1725027925968,0.084478,59178.0,59176.0,0.00025336]
[1725027926172,0.63696,59178.0,59176.0,0.00025336]
[1725027926372,1.066839,59177.0,59176.0,0.00025336]
[1725027926574,1.796839,59177.0,59176.0,0.00025336]
[1725027927381,1.796839,59177.0,59163.0,0.3608]
[1725027927382,1.71236,59177.0,59163.0,0.3608]
[1725027927593,0.084509,59156.0,59151.0,0.0039]
[1725027927889,0.154509,59156.0,59150.0,0.084517]
[1725027928081,0.07,59156.0,59150.0,0.084517]
[1725027928282,0.07,59156.0,59155.0,0.6008]
[1725027928485,0.00025358,59159.0,59155.0,0.6008]
[1725027928677,0.10025358,59159.0,59155.0,0.6008]
[1725027929182,0.3608,59158.0,59148.0,0.3608]
[1725027929374,0.4708,59158.0,59148.0,0.3608]
[1725027929576,0.24,59157.0,59148.0,0.3608]
[1725027929775,0.3608,59152.0,59147.0,0.00025358]
[1725027929978,0.084521,59148.0,59147.0,0.00025358]
[1725027930179,0.094513,59154.0,59147.0,0.36105358]
[1725027930399,0.094513,59154.0,59152.0,0.084514]
[1725027930400,0.13,59154.0,59152.0,0.084514]
[1725027930578,0.02696696,59159.0,59153.0,0.3608]
[1725027930887,0.01025358,59159.0,59158.0,0.24]
[1725027931182,0.00025358,59159.0,59158.0,0.6008]
[1725027931387,0.00025358,59159.0,59158.0,0.685306]
[1725027932483,2.2e-07,59159.0,59158.0,1.792426]
[1725027932879,2.2e-07,59159.0,59158.0,1.192426]
[1725027933074,2.2e-07,59159.0,59158.0,0.685306]
[1725027933275,2.2e-07,59159.0,59158.0,0.71139242]
[1725027933478,2.2e-07,59159.0,59158.0,1.81851242]
[1725027933678,0.0039,59182.0,59158.0,1.73400642]
[1725027933887,0.07,59182.0,59181.0,0.24]
[1725027934085,0.084458,59192.0,59181.0,0.51508544]
[1725027934290,0.084458,59192.0,59188.0,0.24]
[1725027934291,0.3608,59191.0,59188.0,0.24]
[1725027934594,0.084461,59190.0,59188.0,0.24]
[1725027934797,0.204461,59190.0,59184.0,0.24025358]
[1725027935090,0.12,59190.0,59185.0,0.182]
[1725027935285,0.12,59190.0,59188.0,0.24]
[1725027936099,0.12,59190.0,59189.0,0.084462]
[1725027937493,0.12,59190.0,59189.0,0.266462]
[1725027937692,0.00025358,59195.0,59192.0,0.084458]
[1725027938003,0.00025358,59195.0,59189.0,0.182]
[1725027938004,0.00025358,59195.0,59194.0,0.324455]
[1725027938586,0.00025358,59195.0,59194.0,0.24]
[1725027938787,0.00025358,59195.0,59194.0,0.42196]
[1725027939694,0.01025358,59195.0,59194.0,0.24]
[1725027940100,0.01025358,59195.0,59194.0,0.42196]
[1725027940293,0.01025358,59195.0,59192.0,0.18196]
[1725027940499,0.01025358,59195.0,59193.0,0.24]
[1725027940693,0.01025358,59195.0,59194.0,0.445255]
[1725027940694,0.05025358,59195.0,59194.0,0.445255]
[1725027941507,0.084428,59213.0,59207.0,0.084436]
[1725027941693,0.12,59213.0,59204.0,0.24]
[1725027941995,0.084439,59205.0,59204.0,0.24]
[1725027942195,0.084442,59203.0,59202.0,0.3608]
[1725027942405,0.084458,59192.0,59191.0,0.24]
[1725027942593,0.084465,59187.0,59186.0,0.6008]
[1725027942817,0.08,59187.0,59186.0,0.6008]
[1725027943095,0.084469,59184.0,59183.0,0.00025336]
[1725027943293,0.12,59184.0,59183.0,0.00025336]
[1725027943502,0.204469,59184.0,59183.0,0.00025336]
[1725027943686,1.22688,59184.0,59174.0,0.24]
[1725027943998,0.7216,59175.0,59158.0,0.0039]
[1725027944194,0.3608,59159.0,59149.0,0.00827536]
[1725027944385,0.3608,59159.0,59145.0,0.0039]
[1725027944386,0.3608,59152.0,59145.0,0.24]
[1725027944593,0.3608,59146.0,59143.0,0.00025358]
[1725027944787,0.084525,59145.0,59143.0,0.00025358]
[1725027944988,0.3608,59144.0,59128.0,0.3608]
[1725027945190,0.3608,59134.0,59127.0,0.24]
[1725027945419,0.6008,59128.0,59115.0,0.18323529]
[1725027945592,0.6008,59123.0,59115.0,0.18323529]
[1725027945890,0.6008,59123.0,59110.0,0.24]
[1725027945891,0.4908,59123.0,59110.0,0.24]
[1725027946086,0.3608,59117.0,59111.0,0.00025358]
[1725027946390,0.3608,59112.0,59111.0,0.00025358]
[1725027946692,0.4808,59112.0,59111.0,0.00025358]
[1725027947195,1.94912,59112.0,59093.0,0.2939]
[1725027947398,1.94912,59112.0,59087.0,0.34031157]
[1725027947399,0.3608,59098.0,59087.0,0.34031157]
[1725027947703,0.4108,59098.0,59087.0,0.05031157]
[1725027948085,0.7216,59090.0,59087.0,0.05056537]
[1725027948995,0.0002538,59098.0,59087.0,0.41136537]
[1725027949497,0.0002538,59098.0,59092.0,0.3608]
[1725027949801,0.29,59093.0,59087.0,0.05056537]
[1725027950094,0.6508,59088.0,59087.0,0.05056537]
[1725027950299,0.7008,59088.0,59087.0,0.05056537]
[1725027950596,0.91852,59088.0,59087.0,0.05056537]
[1725027950788,0.3608,59088.0,59087.0,0.0002538]
[1725027951190,0.6508,59099.0,59087.0,0.0002538]
[1725027951386,0.0202538,59098.0,59088.0,0.3608]
[1725027951887,0.0202538,59098.0,59087.0,0.0848608]
[1725027952092,0.0202538,59098.0,59089.0,0.3608]
[1725027952297,0.3608,59090.0,59088.0,0.084606]
[1725027952502,0.3608,59090.0,59087.0,0.0002538]
[1725027952691,0.29,59088.0,59087.0,0.0002538]
[1725027952895,0.79772,59088.0,59087.0,0.0002538]
[1725027953089,1.44772,59088.0,59067.0,0.3608]
[1725027953401,0.3608,59079.0,59071.0,0.08463]
[1725027953597,0.3608,59079.0,59072.0,0.3608]
[1725027953802,0.3608,59083.0,59073.0,0.3608]
[1725027954097,0.3608,59083.0,59081.0,0.084616]
[1725027954689,0.0002538,59084.0,59083.0,0.084614]
[1725027954889,0.0002538,59084.0,59083.0,0.445414]
[1725027955096,0.0002538,59084.0,59083.0,0.45393882]
[1725027955297,0.0002538,59084.0,59083.0,0.084614]
[1725027955690,0.0202538,59084.0,59083.0,0.084614]
[1725027956096,0.02,59084.0,59083.0,0.084614]
[1725027956299,0.03,59090.0,59087.0,0.084607]
[1725027956603,0.03,59090.0,59089.0,0.3608]
[1725027956604,0.11,59090.0,59089.0,0.3608]
[1725027956791,0.61772,59090.0,59075.0,0.3608]
[1725027956992,0.3608,59085.0,59075.0,0.3608]
[1725027957196,0.084617,59081.0,59075.0,0.3608]
[1725027957391,0.11,59081.0,59075.0,0.3608]
[1725027958102,0.11,59081.0,59074.0,0.084626]
[1725027958103,0.084619,59080.0,59074.0,0.084626]
[1725027958290,0.11,59080.0,59078.0,0.3608]
[1725027958697,0.11,59080.0,59079.0,0.374619]
[1725027959208,0.1702538,59086.0,59079.0,0.374619]
[1725027959209,0.0002538,59086.0,59085.0,0.084611]
[1725027959390,0.0702538,59086.0,59085.0,0.3608]
[1725027959592,0.4310538,59086.0,59078.0,0.3608]
[1725027959798,0.084617,59081.0,59078.0,0.3608]
[1725027960000,0.194617,59081.0,59078.0,0.3608]
[1725027960301,0.194617,59081.0,59072.0,0.3610538]
[1725027960302,0.3608,59080.0,59072.0,0.0002538]
[1725027960497,0.4708,59080.0,59072.0,0.0002538]
[1725027960903,0.11,59080.0,59079.0,0.3608]
[1725027961099,0.11,59080.0,59079.0,0.445419]
[1725027961495,0.11,59080.0,59079.0,0.806219]
[1725027961897,0.11,59080.0,59079.0,0.3608]
[1725027962491,0.11,59080.0,59079.0,0.806219]
[1725027963122,0.11,59080.0,59079.0,0.7216]
[1725027963299,0.194618,59080.0,59079.0,0.7216]
[1725027964013,0.11,59080.0,59079.0,0.3608]
[1725027964311,0.11,59080.0,59077.0,0.18212]
[1725027964695,0.11,59080.0,59079.0,0.084619]
[1725027965598,0.11,59080.0,59079.0,0.882419]
[1725027965809,0.11,59080.0,59079.0,0.084619]
[1725027966197,0.11,59080.0,59079.0,0.3608]
[1725027966409,0.084625,59075.0,59072.0,0.0002538]
[1725027966700,0.12,59075.0,59072.0,0.0002538]
[1725027967125,0.084628,59073.0,59072.0,0.0002538]
[1725027967310,0.194628,59073.0,59072.0,0.0002538]
[1725027968302,1.987896,59073.0,59072.0,0.0002538]
[1725027968799,1.903268,59073.0,59072.0,0.0002538]
[1725027969008,0.942468,59073.0,59072.0,0.0002538]
[1725027969212,0.194628,59073.0,59072.0,0.0002538]
[1725027969507,1.903268,59073.0,59072.0,0.0002538]
[1725027969813,1.987896,59073.0,59072.0,0.0002538]
[1725027970513,1.987896,59073.0,59058.0,0.29031157]
[1725027970514,1.81864,59073.0,59058.0,0.084648]
[1725027970712,0.6008,59065.0,59058.0,0.3608]
[1725027970909,0.6008,59065.0,59052.0,0.6008]
[1725027970910,0.084641,59064.0,59060.0,0.084646]
[1725027971213,0.204641,59064.0,59058.0,0.3608]
[1725027971408,0.12,59064.0,59063.0,0.084642]
[1725027971811,0.12,59064.0,59063.0,0.445442]
[1725027972004,0.12,59064.0,59063.0,0.49575357]
[1725027972410,0.204641,59064.0,59063.0,0.49575357]
[1725027972606,0.204641,59064.0,59063.0,0.3608]
[1725027973207,0.12,59064.0,59063.0,0.49575357]
[1725027973414,0.12,59064.0,59063.0,0.445442]
[1725027974014,0.12,59064.0,59063.0,1.0204441]
[1725027974418,0.12,59064.0,59063.0,0.953362]
[1725027974720,0.0002538,59067.0,59066.0,0.084638]
[1725027974910,0.0402538,59067.0,59066.0,0.591436]
[1725027975110,0.0402538,59067.0,59066.0,1.699356]
[1725027975407,0.084619,59079.0,59066.0,0.24]
[1725027975710,0.12,59079.0,59075.0,0.3608]
[1725027975907,0.12,59079.0,59078.0,0.324621]
[1725027976620,0.12,59079.0,59078.0,0.084621]
[1725027976811,0.12,59079.0,59078.0,0.39203867]
[1725027977014,0.02750699,59084.0,59083.0,0.084614]
[1725027977318,0.02750699,59084.0,59083.0,0.832374]
[1725027977319,0.0002538,59084.0,59083.0,0.832374]
[1725027977510,0.0002538,59084.0,59083.0,1.749288]
[1725027977710,0.084584,59104.0,59094.0,0.084597]
[1725027978016,0.575384,59104.0,59096.0,0.05056495]
[1725027978327,0.24,59101.0,59096.0,0.05056495]
[1725027978524,0.24,59101.0,59095.0,0.3608]
[1725027978525,0.13,59101.0,59099.0,0.05056495]
[1725027978717,0.13,59101.0,59097.0,0.05056495]
[1725027979416,0.13,59101.0,59099.0,0.3608]
[1725027979615,0.13,59101.0,59100.0,0.3608]
[1725027980120,0.08459,59100.0,59096.0,0.05056495]
[1725027980328,0.12,59100.0,59096.0,0.05056495]
[1725027980526,0.20459,59100.0,59094.0,0.1440385]
[1725027980919,0.20459,59100.0,59095.0,0.05056495]
[1725027981225,0.20459,59100.0,59094.0,0.1440385]
[1725027981420,0.20459,59100.0,59095.0,0.13516095]
[1725027981625,0.12,59100.0,59099.0,0.3608]
[1725027982016,0.12,59100.0,59099.0,0.685391]
[1725027982214,0.12,59100.0,59099.0,0.73595595]
[1725027982413,0.02682715,59105.0,59100.0,0.084589]
[1725027982617,0.12,59105.0,59100.0,0.084589]
[1725027982947,0.12,59105.0,59099.0,0.6008]
[1725027982948,0.12,59105.0,59104.0,0.3608]
[1725027983422,0.204582,59105.0,59104.0,0.3608]
[1725027984029,0.14685925,59105.0,59104.0,0.3608]
[1725027984418,0.14685925,59105.0,59104.0,0.445383]
[1725027984615,0.14685925,59105.0,59104.0,0.3608]
[1725027985828,0.23144125,59105.0,59104.0,0.3608]
[1725027986724,0.31602325,59105.0,59104.0,0.3608]
[1725027986924,0.31602325,59105.0,59099.0,0.3608]
[1725027986925,0.084589,59100.0,59099.0,0.3608]
[1725027987223,0.214589,59100.0,59099.0,0.685391]
[1725027987614,0.13,59100.0,59099.0,0.685391]
[1725027988726,0.13,59100.0,59099.0,0.3608]
[1725027988921,0.299178,59100.0,59099.0,0.3608]
[1725027989127,0.214589,59100.0,59099.0,0.3608]
[1725027989831,0.169192,59095.0,59094.0,0.0002538]
[1725027990030,1.472268,59095.0,59094.0,0.0002538]
[1725027990220,0.084619,59080.0,59079.0,0.3608]
[1725027990525,0.084621,59078.0,59077.0,0.084622]
[1725027990733,0.084621,59078.0,59074.0,0.00838008]
[1725027990734,0.084625,59075.0,59074.0,0.00838008]
[1725027991029,0.12,59075.0,59074.0,0.09300608]
[1725027991225,0.12,59075.0,59068.0,0.324635]
[1725027991429,0.12,59075.0,59069.0,0.0002538]
[1725027991924,0.204625,59075.0,59074.0,0.3608]
[1725027992129,0.12,59075.0,59069.0,0.0002538]
[1725027992429,0.084632,59071.0,59069.0,0.0848868]
[1725027992630,0.1108735,59075.0,59071.0,0.084631]
[1725027992825,0.2408735,59075.0,59074.0,0.3608]
[1725027993523,0.2408735,59075.0,59074.0,0.445426]
[1725027993524,0.13,59075.0,59074.0,0.445426]
[1725027993734,0.1297462,59075.0,59074.0,1.637892]
[1725027994028,0.0002538,59080.0,59079.0,0.084619]
[1725027994222,0.0002538,59080.0,59079.0,1.467499]
[1725027994419,0.0002538,59080.0,59079.0,1.42571756]
[1725027994625,0.0002538,59080.0,59079.0,2.11033656]
[1725027994928,0.0002538,59080.0,59079.0,2.059918]
[1725027995228,0.0039,59104.0,59098.0,0.084591]
[1725027995429,0.11,59104.0,59099.0,0.0085904]
[1725027995635,0.11,59104.0,59103.0,0.324585]
[1725027995835,0.11,59104.0,59103.0,0.33290952]
[1725027996332,0.11,59104.0,59103.0,0.084585]
[1725027997634,0.11,59104.0,59103.0,0.685385]
[1725027999625,0.11,59104.0,59103.0,0.445385]
[1725027999929,0.11,59104.0,59103.0,0.627465]
[1725028000726,0.11,59104.0,59103.0,0.54288]
[1725028001128,0.11,59104.0,59103.0,0.627465]
[1725028001926,0.11,59104.0,59103.0,0.3608]
[1725028002155,0.194583,59104.0,59103.0,0.3608]
[1725028002533,0.084591,59099.0,59098.0,0.0002538]
[1725028002838,0.194591,59099.0,59098.0,0.3610538]
[1725028003023,0.194591,59099.0,59098.0,0.0002538]
[1725028003531,0.11,59099.0,59098.0,0.00883463]
[1725028003732,0.11,59099.0,59098.0,0.0848458]
[1725028004128,0.19281618,59099.0,59098.0,0.0848458]
[1725028004335,0.19281618,59099.0,59098.0,0.09312531]
[1725028004531,0.11,59099.0,59098.0,0.0848458]
[1725028004838,0.11,59099.0,59098.0,0.0002538]
[1725028005038,0.194591,59099.0,59098.0,0.0002538]
[1725028005530,1.302231,59099.0,59098.0,0.0002538]
[1725028005735,0.084611,59085.0,59082.0,0.3608]
[1725028005939,0.2874817,59085.0,59084.0,0.084612]
[1725028006140,0.204611,59085.0,59084.0,0.084612]
[1725028006734,0.12,59085.0,59084.0,0.084612]
[1725028007036,0.20288478,59085.0,59084.0,0.324612]
[1725028007241,0.12,59085.0,59084.0,0.324612]
[1725028008541,0.12,59085.0,59084.0,0.685412]
[1725028008739,0.0002538,59090.0,59084.0,0.685412]
[1725028008740,0.0002538,59090.0,59089.0,0.084605]
[1725028009044,0.0602538,59090.0,59089.0,0.685405]
[1725028009633,0.09339786,59100.0,59089.0,0.685405]
[1725028009634,0.06627337,59104.0,59095.0,0.084596]
[1725028009832,0.06627337,59104.0,59089.0,1.793125]
[1725028009833,0.07,59104.0,59103.0,0.6008]
[1725028010139,0.07,59104.0,59103.0,0.69366536]
[1725028010452,0.0591,59104.0,59103.0,1.87757]
[1725028010741,0.0002538,59115.0,59112.0,0.084572]
[1725028010932,0.0002538,59115.0,59114.0,0.9616]
[1725028011134,8e-07,59115.0,59114.0,1.046169]
[1725028011443,0.08288478,59138.0,59116.0,0.084566]
[1725028011649,0.11,59138.0,59134.0,0.3608]
[1725028011830,0.11,59138.0,59134.0,0.36928777]
[1725028012029,0.11,59138.0,59135.0,0.18208]
[1725028013337,0.11,59138.0,59134.0,0.36928777]
[1725028013644,0.11,59138.0,59135.0,0.182]
[1725028013839,0.11,59138.0,59137.0,0.084536]
[1725028014034,0.11,59138.0,59135.0,0.182]
[1725028014547,0.0002538,59142.0,59137.0,0.3608]
[1725028014850,0.08288478,59162.0,59140.0,0.6008]
[1725028015050,0.08288478,59162.0,59137.0,0.3608]
[1725028015051,0.04958776,59159.0,59157.0,0.24]
[1725028015346,0.04958776,59162.0,59157.0,0.422]
[1725028015535,0.04958776,59163.0,59161.0,0.3608]
[1725028015730,0.084498,59164.0,59161.0,0.3608]
[1725028015731,0.084499,59164.0,59161.0,0.3608]
[1725028015930,0.084501,59162.0,59161.0,0.3608]
[1725028016134,0.12,59162.0,59158.0,0.18196]
[1725028016334,0.04953143,59159.0,59158.0,0.18196]
[1725028016640,0.204501,59162.0,59156.0,0.24025355]
[1725028016641,0.04953143,59162.0,59156.0,0.00025355]
[1725028016831,0.084508,59157.0,59156.0,0.00025355]
[1725028017032,0.11,59157.0,59137.0,0.18586]
[1725028017236,0.084535,59138.0,59137.0,0.18196]
[1725028017741,0.084538,59136.0,59135.0,0.3608]